bitfinex/quotes_ETHUSD_20260310
["timestamp","ask_amount","ask_price","bid_price","bid_amount"]
[1773156079383,1.25087925,2070.8,2069.5,1.20802126]
[1773156079562,1.25087925,2070.8,2069.5,2.50016405]
[1773156079766,1.25087925,2070.8,2069.6,1.29214279]
[1773156080476,1.20732119,2070.7,2069.7,1.20790452]
[1773156081355,1.20732119,2070.7,2069.5,1.20802126]
[1773156081356,3.57790762,2070.6,2069.5,1.20802126]
[1773156082155,2.32702837,2070.3,2069.3,0.001]
[1773156082360,2.45855037,2070.1,2069.3,0.001]
[1773156082881,3.35655037,2070.1,2069.3,0.001]
[1773156083089,1.20767112,2070.1,2069.3,0.001]
[1773156084072,1.20767112,2070.1,2069.9,0.001]
[1773156084269,1.20767112,2070.1,2069.3,0.001]
[1773156084465,5.72945116,2070.3,2069.3,0.001]
[1773156084886,4.83045116,2070.3,2069.3,0.001]
[1773156085063,2.10655446,2070.3,2069.6,0.001]
[1773156085685,2.1065349,2070.4,2069.6,0.001]
[1773156086074,3.35741415,2070.4,2069.6,0.001]
[1773156086489,2.45841415,2070.4,2069.6,0.001]
[1773156086689,3.35741415,2070.4,2069.6,0.001]
[1773156087474,3.35841415,2070.4,2069.6,0.001]
[1773156088769,4.82930187,2070.7,2069.6,1.29314279]
[1773156088968,5.72930187,2070.7,2069.6,1.29314279]
[1773156089166,1.25087925,2070.5,2069.6,0.001]
[1773156089591,0.9,2070.5,2069.6,0.001]
[1773156090072,2.32702837,2070.3,2069.6,0.001]
[1773156090298,1.25087925,2070.4,2069.6,0.001]
[1773156090597,6.08018112,2070.7,2069.6,0.001]
[1773156090777,1.25087925,2070.5,2069.6,0.001]
[1773156091572,3.57790762,2070.3,2069.6,0.001]
[1773156091769,2.32702837,2070.0,2069.3,0.001]
[1773156091990,1.25087925,2069.8,2069.3,0.001]
[1773156092693,1.20790452,2069.7,2069.3,0.001]
[1773156093084,4.78581214,2069.7,2069.3,0.001]
[1773156093702,2.45878377,2069.7,2069.3,0.001]
[1773156094135,1.20790452,2069.7,2069.3,0.001]
[1773156094821,2.32702837,2069.8,2069.3,0.001]
[1773156095135,1.20778781,2069.9,2069.3,0.001]
[1773156095274,2.45866706,2069.9,2069.3,0.001]
[1773156095609,2.32702837,2069.8,2069.3,0.001]
[1773156095907,1.25087925,2069.7,2069.3,0.001]
[1773156096906,1.20796289,2069.6,2069.3,0.001]
[1773156097107,1.20795062,2069.7,2069.3,0.001]
[1773156098180,5.73452052,2069.8,2069.3,0.001]
[1773156098181,1.20773336,2070.0,2069.3,0.001]
[1773156098391,2.87641067,2069.9,2069.3,0.001]
[1773156098712,0.904,2070.6,2069.6,1.29214279]
[1773156098897,2.87571564,2070.5,2069.6,1.29214279]
[1773156099282,2.11130783,2070.8,2069.7,1.29214279]
[1773156099476,2.11130783,2070.8,2069.5,1.20902126]
[1773156099477,2.87904518,2070.7,2069.5,1.20902126]
[1773156099702,0.002,2069.7,2069.5,1.20902126]
[1773156099912,0.002,2070.0,2069.5,2.50116405]
[1773156100084,2.87904518,2070.7,2069.6,1.29214279]
[1773156100400,2.87904518,2070.6,2069.6,1.29214279]
[1773156100602,3.78404518,2070.6,2069.6,1.29214279]
[1773156100804,1.20749613,2070.4,2069.7,1.20790452]
[1773156100982,1.2074752,2070.5,2069.7,1.20790452]
[1773156101186,2.88200836,2070.4,2069.7,1.20790452]
[1773156102905,4.08950712,2070.4,2069.7,1.20790452]
[1773156103103,4.08950712,2070.4,2069.7,2.50004731]
[1773156103104,1.20749876,2070.4,2069.7,2.50004731]
[1773156103306,1.20734809,2070.7,2069.8,1.29214279]
[1773156103609,2.88266664,2070.6,2069.7,1.20790452]
[1773156104004,2.88266664,2070.5,2069.7,1.20790452]
[1773156104203,2.88266664,2070.4,2069.7,1.20790452]
[1773156104401,5.83506016,2070.7,2069.7,1.20790452]
[1773156104587,2.88306339,2070.6,2069.8,1.29214279]
[1773156104790,1.20726506,2070.8,2069.9,1.20778781]
[1773156104991,2.88306339,2070.7,2069.8,1.20780996]
[1773156105397,2.88306339,2070.7,2069.8,2.49995275]
[1773156105597,1.20726857,2070.8,2069.9,1.29214279]
[1773156105802,2.8822892,2070.7,2069.8,1.20780996]
[1773156107413,1.2073795,2070.6,2069.6,5.99003394]
[1773156107712,2.88234169,2070.5,2069.6,2.36614962]
[1773156109487,2.11649613,2070.4,2069.5,1.20900192]
[1773156109704,2.88234169,2070.3,2069.5,1.20900683]
[1773156110623,4.0730422,2070.3,2069.5,0.001]
[1773156110922,2.88234169,2070.2,2069.5,1.209014]
[1773156111222,2.88234169,2070.2,2069.5,0.001]
[1773156111393,1.20778781,2069.9,2069.5,0.001]
[1773156111593,1.19070051,2069.7,2069.0,0.001]
[1773156111794,4.0730422,2069.6,2069.0,0.001]
[1773156112020,2.88234169,2069.5,2069.0,0.001]
[1773156113327,4.0730422,2069.5,2069.0,0.001]
[1773156113622,1.20813801,2069.3,2069.0,0.001]
[1773156113921,1.20812291,2069.4,2069.0,0.001]
[1773156114324,0.911,2069.6,2069.0,0.001]
[1773156114525,2.88338692,2069.5,2069.0,0.001]
[1773156114722,4.69927543,2069.8,2069.0,0.001]
[1773156115039,3.79427541,2069.7,2069.0,0.001]
[1773156115202,2.88327541,2069.6,2069.0,0.001]
[1773156115824,1.20802126,2069.5,2069.0,0.001]
[1773156116009,1.20800244,2069.6,2069.0,0.001]
[1773156116206,2.88241053,2069.5,2069.0,0.001]
[1773156116834,1.20792774,2069.7,2069.0,1.17812019]
[1773156117004,2.88241053,2069.6,2069.0,1.17812019]
[1773156117423,1.20794081,2069.7,2069.0,1.17812019]
[1773156118032,1.20794081,2069.7,2069.0,0.001]
[1773156118337,2.88208355,2069.6,2069.0,0.001]
[1773156119037,2.88208355,2069.6,2069.0,1.20931287]
[1773156119418,1.20787144,2069.8,2069.0,2.38643306]
[1773156119618,2.88165546,2069.7,2069.0,2.38643306]
[1773156120016,2.12179578,2069.9,2069.2,2.38531659]
[1773156120341,2.88113736,2069.8,2069.2,2.38531659]
[1773156120953,4.07183787,2069.8,2069.0,0.001]
[1773156121251,4.07183787,2069.8,2068.8,0.001]
[1773156121252,3.51772888,2069.4,2068.8,0.001]
[1773156121408,1.19070051,2069.2,2068.8,0.001]
[1773156121607,2.33821047,2069.1,2068.5,0.001]
[1773156121854,2.33821047,2069.4,2068.5,1.20960341]
[1773156122048,0.916,2069.5,2068.7,1.20848842]
[1773156122343,0.916,2069.5,2068.6,2.38562456]
[1773156122705,1.20801605,2069.6,2068.6,2.38562456]
[1773156122919,2.12392812,2069.7,2068.7,1.17712019]
[1773156123137,2.88079582,2069.6,2068.7,1.17712019]
[1773156124036,2.39872177,2069.5,2068.5,2.16355787]
[1773156124241,6.40962441,2069.4,2068.5,2.16359377]
[1773156124424,1.20802126,2069.5,2069.1,0.001]
[1773156125325,0.917,2069.6,2069.1,0.001]
[1773156125937,1.20794603,2069.7,2069.1,0.001]
[1773156126234,2.12594603,2069.7,2069.1,0.001]
[1773156127237,4.07080984,2069.6,2069.1,0.001]
[1773156127440,6.40930027,2069.5,2068.9,0.001]
[1773156127642,4.0710898,2069.4,2068.9,0.001]
[1773156127943,1.19070051,2069.1,2068.5,0.001]
[1773156128153,2.12735214,2069.0,2068.5,0.001]
[1773156128511,1.19070051,2068.8,2068.3,0.001]
[1773156128752,2.33821047,2068.5,2068.0,0.001]
[1773156129038,2.33821047,2068.5,2067.0,4.83780452]
[1773156129039,1.19070051,2068.3,2067.0,4.83780452]
[1773156129245,3.52891098,2068.1,2067.0,1.20948234]
[1773156129415,1.19070051,2068.1,2067.0,1.20948234]
[1773156129619,2.33821047,2067.9,2066.9,1.17712019]
[1773156129817,0.92,2067.8,2066.9,2.3866508]
[1773156130028,1.20907288,2067.7,2066.8,0.001]
[1773156130234,2.33821047,2067.6,2066.8,0.001]
[1773156130628,3.52891098,2067.3,2066.5,0.001]
[1773156130844,2.11170051,2067.2,2066.5,0.001]
[1773156131017,2.33821047,2067.0,2066.5,0.001]
[1773156131365,2.33821047,2067.0,2066.3,0.001]
[1773156131366,2.33821047,2066.7,2066.3,0.001]
[1773156131702,3.52891098,2067.3,2066.3,1.21084203]
[1773156132029,0.921,2067.2,2066.3,1.21084203]
[1773156132241,1.20942383,2067.1,2066.3,0.001]
[1773156132565,0.921,2067.1,2066.3,0.001]
[1773156132911,3.25921047,2067.1,2066.3,0.001]
[1773156133113,4.44991098,2067.1,2066.3,0.001]
[1773156133344,2.33821047,2066.8,2066.3,0.001]
[1773156133641,0.922,2066.8,2066.3,0.001]
[1773156133947,3.26021047,2066.8,2066.3,0.001]
[1773156134249,1.2096579,2066.7,2066.3,0.001]
[1773156134768,3.26021047,2066.8,2066.3,0.001]
[1773156134916,1.20939497,2067.2,2066.3,0.001]
[1773156135217,4.67642094,2067.6,2066.4,1.17712019]
[1773156135218,3.26121047,2067.6,2066.4,1.17712019]
[1773156135626,2.13201441,2067.8,2066.6,1.17712019]
[1773156135832,2.33821047,2067.6,2066.6,1.17712019]
[1773156136021,1.20901441,2067.8,2066.6,1.17712019]
[1773156136223,2.13201441,2067.8,2066.7,2.38677809]
[1773156136418,1.20901441,2067.8,2066.8,1.15292889]
[1773156136623,0.923,2067.8,2066.8,1.15292889]
[1773156136859,2.13201809,2067.8,2066.8,1.15292889]
[1773156137429,2.33821047,2067.6,2066.7,1.2096579]
[1773156138342,1.20918984,2067.5,2066.6,0.001]
[1773156138523,4.836375,2067.7,2066.6,1.17812019]
[1773156138728,1.20883903,2068.1,2066.6,1.17812019]
[1773156138920,0.924,2068.0,2066.6,1.17812019]
[1773156139645,1.20883903,2068.1,2066.6,1.17812019]
[1773156139851,0.924,2068.0,2066.8,1.10656773]
[1773156140454,1.20895594,2067.9,2066.9,1.20954085]
[1773156140657,4.83541263,2068.1,2066.9,2.31610858]
[1773156140826,1.20883903,2068.1,2066.9,2.31610858]
[1773156141025,2.13283903,2068.1,2067.0,1.10656773]
[1773156141228,6.16115432,2068.5,2067.0,1.10656773]
[1773156141421,5.75881008,2068.4,2067.0,1.10656773]
[1773156141651,0.924,2068.3,2067.0,0.95]
[1773156141850,0.924,2068.3,2067.1,1.10656773]
[1773156142162,1.2086637,2068.4,2067.1,1.10656773]
[1773156142459,0.924,2068.3,2067.1,1.10656773]
[1773156143027,3.23259206,2068.4,2067.2,1.20936532]
[1773156143224,3.43813883,2068.2,2067.0,2.15948016]
[1773156143461,2.1326637,2068.4,2067.1,1.10656773]
[1773156143958,2.1336637,2068.4,2067.1,1.10656773]
[1773156144362,3.43813883,2068.3,2067.1,1.10656773]
[1773156144660,1.09992836,2068.2,2067.0,3.26604789]
[1773156145059,1.09992836,2068.2,2067.1,1.10656773]
[1773156145235,1.20883903,2068.1,2067.2,1.20936532]
[1773156145755,2.33821047,2067.9,2067.0,1.20942548]
[1773156145938,1.09992836,2068.0,2067.0,1.20942548]
[1773156146139,0.925,2067.9,2066.8,4.83829616]
[1773156147162,2.33821047,2067.7,2066.7,1.10656773]
[1773156147337,3.43813883,2067.4,2066.6,0.001]
[1773156147547,3.26321047,2067.3,2066.6,0.001]
[1773156147736,2.33821047,2067.0,2066.6,0.001]
[1773156147929,2.33821047,2067.0,2066.4,0.001]
[1773156148130,1.09992836,2067.2,2066.4,0.001]
[1773156149463,1.20942383,2067.1,2066.4,0.001]
[1773156149636,2.33821047,2067.0,2066.4,0.001]
[1773156149841,3.43813883,2067.0,2066.4,0.001]
[1773156150040,1.09992836,2066.9,2066.3,0.001]
[1773156150297,1.09992836,2066.6,2066.1,0.001]
[1773156150535,1.09992836,2066.6,2065.6,1.21024951]
[1773156150536,0.925,2066.5,2065.6,1.21024951]
[1773156150738,0.925,2066.5,2065.2,1.21048597]
[1773156150739,2.33821047,2066.1,2065.2,1.21048597]
[1773156151209,1.09992836,2066.3,2065.2,1.21048597]
[1773156151375,2.30987899,2066.2,2065.2,1.21048597]
[1773156151895,1.20995063,2066.2,2065.3,1.10656773]
[1773156152097,4.83980253,2066.3,2065.3,1.10656773]
[1773156152098,2.13487694,2066.4,2065.3,1.10656773]
[1773156152398,2.13487694,2066.4,2065.2,1.21048597]
[1773156152399,5.57301577,2066.4,2065.2,1.21048597]
[1773156152595,2.13487694,2066.4,2065.3,1.10656773]
[1773156152799,2.13487694,2066.4,2065.8,0.001]
[1773156153097,1.09992836,2066.8,2065.8,0.001]
[1773156153098,2.30958626,2066.8,2065.8,0.001]
[1773156153394,1.20961555,2066.8,2065.8,0.001]
[1773156153592,1.20961555,2066.8,2065.8,1.10756773]
[1773156153801,2.13556854,2066.9,2065.8,1.10756773]
[1773156154168,2.33821047,2066.5,2065.8,0.001]
[1773156154707,1.09992836,2066.4,2065.8,0.001]
[1773156154869,0.926,2066.3,2065.8,0.001]
[1773156155064,1.09992836,2066.8,2065.8,0.001]
[1773156155374,1.20971644,2066.6,2065.8,0.001]
[1773156156086,1.20967637,2066.7,2065.8,0.001]
[1773156156468,1.20967637,2066.7,2065.8,1.10756773]
[1773156156792,1.20963312,2066.8,2065.8,1.10756773]
[1773156156998,2.13557921,2066.9,2065.8,1.10756773]
[1773156157573,3.97414674,2066.8,2065.8,0.001]
[1773156157779,3.97439725,2066.7,2065.8,0.001]
[1773156157979,2.33821047,2066.5,2065.8,0.001]
[1773156158180,1.09992836,2066.7,2065.8,1.21116839]
[1773156158388,2.87722667,2066.6,2065.8,1.21116839]
[1773156158576,0.926,2066.8,2065.8,1.21116839]
[1773156158971,1.20957921,2066.9,2065.8,1.21116839]
[1773156159170,2.87696199,2066.8,2065.8,0.001]
[1773156159404,9.16477549,2067.1,2065.9,1.10656773]
[1773156159405,1.09992836,2067.1,2065.9,1.10656773]
[1773156159584,2.13541041,2067.2,2066.0,2.31663549]
[1773156159784,2.13541041,2067.2,2066.1,1.10656773]
[1773156159785,2.87692528,2067.1,2066.1,1.10656773]
[1773156160303,2.13541041,2067.2,2066.1,1.10656773]
[1773156160504,1.20928154,2067.4,2066.4,1.10656773]
[1773156161107,2.87687905,2067.3,2066.4,1.10656773]
[1773156161301,1.20928154,2067.4,2066.4,1.10656773]
[1773156161512,1.20928154,2067.4,2066.5,1.20977498]
[1773156161683,5.76338137,2067.7,2066.5,2.31634271]
[1773156162010,1.21104633,2067.8,2066.6,1.10656773]
[1773156162309,2.33821047,2067.6,2066.6,1.10656773]
[1773156162600,3.43813883,2067.6,2066.5,1.20977498]
[1773156162820,2.33821047,2067.3,2066.4,0.948]
[1773156163109,0.927,2067.5,2065.9,2.15811136]
[1773156163110,2.33821047,2066.9,2065.9,2.15811136]
[1773156163490,1.20959938,2066.8,2065.9,2.15809147]
[1773156163806,1.20959938,2066.8,2065.8,2.31775191]
[1773156164207,1.20959938,2066.8,2065.9,1.10656773]
[1773156164381,1.20942383,2067.1,2065.9,1.10656773]
[1773156165005,1.20942383,2067.1,2065.9,2.05456773]
[1773156165606,2.30935219,2067.1,2065.9,2.05456773]
[1773156166109,2.30935219,2067.1,2066.0,1.21006776]
[1773156166314,2.30935219,2067.1,2066.0,1.21106776]
[1773156166608,2.30935219,2067.1,2066.0,2.31763549]
[1773156167509,0.928,2067.0,2066.0,2.31763549]
[1773156167714,1.20942383,2067.1,2066.0,2.31763549]
[1773156167903,5.7653861,2067.3,2066.1,1.02784871]
[1773156168087,2.87733001,2067.2,2066.1,1.02784871]
[1773156168283,1.20942383,2067.1,2066.2,1.20995063]
[1773156168685,1.20942383,2067.1,2066.1,2.23785186]
[1773156169379,1.21123615,2067.5,2066.3,1.02952034]
[1773156170308,2.33821047,2067.3,2066.4,1.20983352]
[1773156170478,0.928,2067.3,2066.4,1.20983352]
[1773156170685,1.04781869,2067.5,2066.4,2.23935386]
[1773156170885,0.002,2067.5,2066.5,1.02952034]
[1773156171114,1.04781869,2067.5,2066.4,1.20983352]
[1773156171311,2.87795399,2067.4,2066.4,1.20983352]
[1773156172308,1.21118984,2067.5,2066.6,1.20971644]
[1773156172519,2.13918984,2067.5,2066.6,1.20971644]
[1773156172814,0.002,2067.5,2066.7,1.02952034]
[1773156173614,0.002,2067.7,2066.7,1.02952034]
[1773156173820,1.2110735,2067.7,2066.7,1.02952034]
[1773156174121,0.002,2067.7,2066.7,1.02952034]
[1773156174286,0.002,2067.7,2066.8,1.20959938]
[1773156175332,0.002,2067.7,2067.3,2.33821047]
[1773156175530,0.002,2068.0,2067.4,1.02952034]
[1773156176321,0.002,2068.0,2067.5,1.20918984]
[1773156177997,0.002,2068.0,2067.1,5.78558242]
[1773156178332,0.002,2068.0,2067.2,1.02952034]
[1773156178500,0.002,2068.0,2067.3,2.23882716]
[1773156179128,0.002,2068.0,2067.3,1.20930682]
[1773156179293,0.002,2068.0,2067.4,1.02952034]
[1773156180001,0.002,2068.0,2067.3,1.20930682]
[1773156180517,0.002,2068.0,2067.3,1.02952034]
[1773156180686,1.2107245,2068.3,2067.4,1.02952034]
[1773156181534,0.002,2068.3,2067.4,1.02952034]
[1773156181822,1.21072304,2068.3,2067.4,1.02952034]
[1773156183319,0.002,2068.3,2067.5,1.20918984]
[1773156183528,0.002,2068.3,2067.6,1.02952034]
[1773156183729,1.97681869,2069.2,2068.1,3.36716241]
[1773156183918,1.21020138,2069.2,2068.2,1.02952034]
[1773156184104,1.21020138,2069.2,2068.3,0.949]
[1773156184300,0.002,2069.2,2068.3,0.949]
[1773156184500,0.002,2069.2,2068.3,1.97852034]
[1773156184702,1.21020526,2069.2,2068.4,1.02952034]
[1773156185240,0.002,2069.2,2068.5,1.20860526]
[1773156185842,0.002,2069.2,2068.3,0.949]
[1773156186014,0.002,2069.2,2068.3,1.97852034]
[1773156186221,0.002,2069.2,2068.4,1.02952034]
[1773156187307,0.002,2069.2,2068.5,2.2381256]
[1773156187509,0.002,2069.2,2068.6,1.02952034]
[1773156187947,0.002,2069.4,2068.9,1.02952034]
[1773156188168,0.002,2069.4,2068.9,1.97952034]
[1773156188331,0.002,2069.4,2069.0,1.02952034]
[1773156189246,0.002,2069.4,2069.1,1.20825479]
[1773156189746,0.002,2069.4,2068.9,2.1583693]
[1773156190152,0.002,2069.4,2068.9,3.18788964]
[1773156190353,0.002,2069.4,2069.0,1.02952034]
[1773156190658,0.002,2069.7,2069.5,1.02952034]
[1773156190825,0.002,2070.3,2069.6,0.95]
[1773156191180,0.002,2070.2,2069.6,0.95]
[1773156191478,0.002,2070.2,2069.7,1.20790452]
[1773156191783,0.002,2070.2,2069.6,2.15794558]
[1773156192355,0.002,2070.1,2069.6,3.18746592]
[1773156193180,0.002,2070.5,2070.2,1.02952034]
[1773156193482,0.002,2070.5,2070.4,1.20749613]
[1773156193483,0.004,2070.5,2070.4,1.20749613]
[1773156193826,0.002,2070.5,2070.4,1.20749613]
[1773156194448,0.004,2070.5,2070.4,1.20749613]
[1773156194853,0.004,2070.5,2070.1,2.70281299]
[1773156195065,0.004,2070.5,2070.1,0.951]
[1773156195875,0.004,2070.5,2070.2,1.20761279]
[1773156198472,0.004,2070.5,2070.1,2.15864259]
[1773156198846,0.002,2070.8,2070.2,1.02952034]
[1773156199654,0.002,2070.8,2070.4,1.04964091]
[1773156200575,0.002,2070.8,2070.6,1.2073795]
[1773156200774,0.002,2071.1,2070.6,2.25702041]
[1773156201080,0.002,2071.1,2070.6,1.2073795]
[1773156201279,1e-08,2071.4,2070.7,1.04964091]
[1773156202282,1e-08,2071.4,2070.6,1.2073795]
[1773156202459,1.0273691,2071.4,2070.6,0.954]
[1773156202656,1.20695781,2071.4,2070.7,1.20732119]
[1773156202884,1.20691493,2071.4,2070.7,2.2569621]
[1773156203088,1.20691493,2071.4,2070.7,1.20732119]
[1773156203686,1.20691493,2071.4,2070.6,2.16134655]
[1773156204455,1.02736909,2071.3,2070.6,0.954]
[1773156204791,1.02736909,2071.1,2070.0,0.955]
[1773156206284,1.02736909,2071.1,2070.1,0.001]
[1773156206658,1.02736909,2070.9,2070.1,0.001]
[1773156207565,1.20713539,2071.1,2070.2,2.33764207]
[1773156208092,1.20906459,2071.2,2070.2,3.38728298]
[1773156208382,0.002,2071.2,2070.2,3.38728298]
[1773156208581,1.20903057,2071.2,2070.3,1.04964091]
[1773156208781,0.002,2071.2,2070.4,2.28095757]
[1773156208951,0.002,2071.2,2070.5,0.957]
[1773156209150,0.002,2071.2,2070.6,0.02381822]
[1773156209394,0.002,2071.2,2070.6,1.04964091]
[1773156210880,1.02936909,2071.2,2070.2,5.78732746]
[1773156211367,1.02936909,2071.2,2070.2,2.16461279]
[1773156212596,1.02936909,2071.2,2070.2,0.957]
[1773156212896,1.02936909,2071.2,2070.1,1.20863754]
[1773156212897,1.02736909,2071.0,2070.1,0.001]
[1773156214169,1.02736909,2071.0,2070.1,1.20867066]
[1773156214791,1.20720459,2070.9,2070.1,0.001]
[1773156215289,2.23455662,2071.0,2070.1,0.001]
[1773156215490,1.20718753,2071.0,2070.1,1.05064091]
[1773156215690,2.23455662,2071.0,2070.1,0.001]
[1773156217296,4.82838422,2071.1,2070.1,1.05064091]
[1773156217662,5.85575331,2071.1,2070.1,0.001]
[1773156218378,2.87990145,2071.0,2070.1,0.001]
[1773156218695,1.02736909,2070.9,2070.3,0.001]
[1773156218991,1.20726289,2070.8,2070.3,0.001]
[1773156219187,1.20926289,2070.8,2070.3,0.001]
[1773156220289,0.002,2070.8,2070.3,0.001]
[1773156220677,2.8869797,2070.8,2070.3,0.001]
[1773156221286,1.20732119,2070.7,2070.3,0.001]
[1773156222014,0.002,2070.8,2070.3,0.001]
[1773156222184,1.20927121,2070.8,2070.3,0.001]
[1773156223396,9.999,2070.3,2070.1,0.001]
[1773156224200,1.20732624,2070.7,2070.1,0.001]
[1773156224997,1.20929315,2070.8,2070.1,0.001]
[1773156225205,2.88724478,2070.7,2070.1,0.001]
[1773156225709,2.88724478,2070.7,2070.1,1.05064091]
[1773156225870,1.20929212,2070.8,2070.1,1.05064091]
[1773156226070,2.8869875,2070.7,2070.1,0.001]
[1773156226286,3.91435659,2070.7,2070.1,0.001]
[1773156226498,1.02736909,2070.7,2070.1,0.001]
[1773156227672,1.2073795,2070.6,2070.1,0.001]
[1773156227873,2.41713979,2070.6,2070.1,0.001]
[1773156229193,2.88687969,2070.5,2070.1,0.001]
[1773156229499,4.10499879,2070.5,2070.0,0.001]
[1773156229667,1.20755446,2070.3,2069.9,0.001]
[1773156229865,1.2181191,2070.2,2069.9,0.001]
[1773156230987,1.2181191,2070.2,2069.3,1.20809909]
[1773156231676,1.20778781,2069.9,2069.1,2.16721753]
[1773156232372,1.2181191,2069.8,2069.1,1.20821753]
[1773156232572,1.2181191,2069.8,2069.0,0.959]
[1773156232991,1.20778781,2069.9,2069.1,1.14661722]
[1773156233771,0.002,2070.3,2069.3,2.35475523]
[1773156233971,2.88667846,2070.3,2069.4,1.14661722]
[1773156234166,0.002,2070.3,2070.0,0.001]
[1773156236611,0.002,2070.5,2070.0,0.001]
[1773156238177,1.20943781,2070.5,2070.0,0.001]
[1773156238384,0.002,2070.5,2070.0,0.001]
[1773156238699,0.002,2070.5,2070.0,1.14761722]
[1773156239678,0.002,2070.5,2070.0,0.001]
[1773156240280,0.002,2070.5,2070.0,1.20872946]
[1773156240503,0.002,2070.5,2070.0,0.001]
[1773156240693,1.2201191,2070.5,2070.0,0.001]
[1773156241603,1.2181191,2070.3,2069.7,0.001]
[1773156242304,1.20761279,2070.2,2069.7,0.001]
[1773156242506,1.2181191,2070.1,2069.7,0.001]
[1773156242880,1.20761279,2070.2,2069.7,0.001]
[1773156243204,2.88879994,2070.1,2069.7,0.001]
[1773156243403,4.83045116,2070.3,2069.7,0.001]
[1773156243404,1.20760007,2070.3,2069.7,0.001]
[1773156243606,2.88767315,2070.2,2069.7,0.001]
[1773156243982,4.10579225,2070.2,2069.7,0.001]
[1773156244179,1.2181191,2070.0,2069.7,0.001]
[1773156244390,1.2181191,2070.0,2069.4,0.959]
[1773156244391,2.42590691,2069.9,2069.4,0.959]
[1773156244700,2.42590691,2069.9,2069.1,1.20821948]
[1773156244701,1.2181191,2069.8,2069.1,1.20821948]
[1773156244897,1.2181191,2069.8,2069.0,4.8331759]
[1773156245894,1.20776338,2070.0,2069.1,1.14661722]
[1773156246102,7.12465911,2070.3,2069.3,1.14661722]
[1773156246103,1.20761043,2070.3,2069.3,1.14661722]
[1773156246329,1.20761043,2070.3,2069.5,1.20802126]
[1773156246505,1.20761043,2070.3,2069.6,0.04831851]
[1773156246690,1.20761043,2070.3,2069.6,0.04931851]
[1773156247090,1.20761043,2070.3,2069.6,0.001]
[1773156247091,2.88627595,2070.2,2069.6,0.001]
[1773156247286,0.002,2070.3,2069.6,0.001]
[1773156247487,1.20955972,2070.3,2069.6,0.001]
[1773156247802,2.42767882,2070.3,2069.6,0.001]
[1773156251005,2.42579022,2070.1,2069.6,0.001]
[1773156251246,1.20960173,2070.3,2069.6,0.001]
[1773156252008,2.88708389,2070.2,2069.6,0.001]
[1773156252545,4.10520299,2070.2,2069.6,0.001]
[1773156252709,1.2181191,2070.2,2069.6,0.001]
[1773156254540,2.42579022,2070.1,2069.6,0.001]
[1773156255021,1.2181191,2070.0,2069.6,0.001]
[1773156256357,2.42771426,2070.3,2069.6,0.001]
[1773156256510,2.88864003,2070.2,2069.6,0.001]
[1773156257655,2.88864003,2070.2,2069.6,1.14761722]
[1773156257810,0.002,2070.3,2069.6,1.14761722]
[1773156258137,1.20956869,2070.3,2069.6,1.14761722]
[1773156258524,0.002,2070.3,2069.7,1.20790452]
[1773156259047,0.002,2069.8,2069.7,1.20790452]
[1773156259225,0.002,2070.3,2069.7,1.20790452]
[1773156259420,0.002,2070.0,2069.6,1.20896142]
[1773156259628,0.002,2070.0,2069.7,0.04310951]
[1773156261046,0.002,2070.0,2069.7,1.25101013]
[1773156262332,0.002,2070.3,2069.8,1.10834014]
[1773156262533,1.20955795,2070.3,2069.7,1.20790062]
[1773156262719,0.002,2070.3,2069.7,2.31624076]
[1773156263951,0.002,2070.3,2069.8,1.10834014]
[1773156265622,0.002,2070.3,2069.6,4.83285154]
[1773156266453,0.002,2070.3,2069.6,5.94119168]
[1773156266949,0.002,2070.3,2069.7,1.10834014]
[1773156267649,1.20955446,2070.3,2069.8,1.20784616]
[1773156268752,1.20955446,2070.3,2069.7,1.10834014]
[1773156268952,1.11048269,2070.2,2069.6,1.20893605]
[1773156269157,1.20955446,2070.3,2069.6,2.31727619]
[1773156269952,1.11048269,2070.2,2069.6,1.20893605]
[1773156270252,1.11048269,2070.2,2069.6,0.001]
[1773156270425,1.11048269,2070.0,2069.6,0.001]
[1773156270635,1.11048269,2070.0,2069.6,1.20896148]
[1773156270826,1.11048269,2070.0,2069.6,0.001]
[1773156271029,2.32003715,2070.3,2069.7,1.20790452]
[1773156271276,1.11048269,2070.1,2069.6,0.001]
[1773156271630,2.31832885,2069.8,2069.6,0.001]
[1773156271832,1.11048269,2069.7,2069.6,0.001]
[1773156272869,1.11048269,2070.0,2069.6,0.001]
[1773156273031,4.83281681,2070.1,2069.6,0.001]
[1773156273032,1.20971928,2070.1,2069.6,0.001]
[1773156273237,4.00342303,2070.0,2069.6,0.001]
[1773156273449,2.89294034,2069.9,2069.6,0.001]
[1773156273654,4.10076482,2069.9,2069.6,0.001]
[1773156273978,1.20782448,2069.9,2069.6,0.001]
[1773156274272,1.20777632,2070.0,2069.6,0.001]
[1773156275141,2.89298873,2069.9,2069.6,0.001]
[1773156275334,4.83279784,2070.1,2069.6,0.001]
[1773156275335,0.002,2070.1,2069.6,0.001]
[1773156275569,0.002,2070.1,2069.6,1.10934014]
[1773156275776,0.002,2070.1,2069.8,1.10834014]
[1773156278457,0.002,2070.1,2069.8,1.20784362]
[1773156279062,0.002,2070.3,2069.9,1.10834014]
[1773156279874,0.002,2070.3,2069.8,1.20784362]
[1773156282956,1.11248269,2070.3,2069.7,2.17089921]
[1773156283475,1.11248269,2070.3,2069.6,1.20892014]
[1773156283971,1.11048269,2070.2,2069.6,0.001]
[1773156284467,1.20767112,2070.1,2069.6,0.001]
[1773156284763,1.11048269,2070.0,2069.8,0.001]
[1773156284968,1.20967112,2070.1,2069.8,0.001]
[1773156285341,2.32015381,2070.1,2069.8,0.001]
[1773156285572,2.32015381,2070.1,2069.6,0.001]
[1773156288760,0.002,2070.1,2069.6,1.02276417]
[1773156289679,2.23464709,2070.1,2069.6,0.001]
[1773156289969,1.02494733,2070.0,2069.6,0.001]
[1773156290557,1.20969976,2070.1,2069.6,0.001]
[1773156290956,1.20969976,2070.1,2069.6,1.20896289]